bitfinex-derivatives/quotes_BTCF0:USTF0_20240820
["timestamp","ask_amount","ask_price","bid_price","bid_amount"]
[1724188785621,0.00014396,59060.0,59056.0,0.08483111]
[1724188785817,0.00014396,59060.0,59059.0,0.3608]
[1724188786621,0.00114396,59060.0,59059.0,0.3608]
[1724188787125,0.00114396,59060.0,59059.0,0.4725]
[1724188787723,0.00114396,59060.0,59059.0,0.1117]
[1724188787919,0.00114396,59060.0,59059.0,0.4725]
[1724188788118,0.00114396,59060.0,59059.0,0.1117]
[1724188789022,0.00114396,59060.0,59059.0,0.4725]
[1724188789624,0.00025396,59068.0,59059.0,0.4725]
[1724188789825,0.00025396,59068.0,59065.0,0.084648]
[1724188790622,0.00015593,59067.0,59066.0,0.084647]
[1724188791622,0.3608,59084.0,59078.0,0.084629]
[1724188791845,0.3608,59084.0,59074.0,0.3608]
[1724188792027,0.3608,59084.0,59079.0,0.084627]
[1724188792618,0.00013316,59083.0,59079.0,0.084627]
[1724188792823,0.00013316,59083.0,59080.0,0.084627]
[1724188793231,0.00013316,59083.0,59076.0,0.00025396]
[1724188794524,0.00013316,59083.0,59079.0,0.084628]
[1724188794724,0.08475716,59083.0,59076.0,0.00025396]
[1724188794925,0.00013316,59083.0,59076.0,0.08488496]
[1724188795231,0.3608,59079.0,59077.0,0.08463]
[1724188796131,0.3608,59079.0,59076.0,0.00025396]
[1724188796430,0.084631,59077.0,59076.0,0.00025396]
[1724188796833,0.445429,59079.0,59076.0,0.00025396]
[1724188797527,0.3608,59077.0,59076.0,0.00025396]
[1724188797935,0.3608,59077.0,59068.0,0.1142]
[1724188797936,0.00012154,59076.0,59068.0,0.084643]
[1724188798133,0.3608,59070.0,59068.0,0.084643]
[1724188799931,0.3618,59070.0,59069.0,0.084643]
[1724188800530,0.3618,59070.0,59063.0,0.00017011]
[1724188800734,0.3608,59065.0,59049.0,0.3608]
[1724188800936,0.3608,59058.0,59049.0,0.445471]
[1724188801233,0.3608,59050.0,59035.0,0.001]
[1724188801439,0.3608,59050.0,59029.0,0.084699]
[1724188801440,0.3608,59038.0,59029.0,0.084699]
[1724188801735,0.00013316,59037.0,59031.0,0.084697]
[1724188801935,0.00013316,59037.0,59033.0,0.3608]
[1724188803331,0.00013316,59037.0,59036.0,0.08469]
[1724188803939,0.00013316,59037.0,59033.0,0.3608]
[1724188804937,0.00113316,59037.0,59033.0,0.3608]
[1724188807432,0.00113316,59037.0,59033.0,0.445494]
[1724188810433,0.00113316,59037.0,59034.0,0.084693]
[1724188811530,0.00113316,59037.0,59024.0,0.22987307]
[1724188811531,0.2922,59036.0,59030.0,0.084698]
[1724188811735,0.3608,59032.0,59024.0,0.2191]
[1724188812447,0.445497,59032.0,59024.0,0.2191]
[1724188813438,0.446497,59032.0,59029.0,0.0847]
[1724188813746,0.3618,59032.0,59029.0,0.0847]
[1724188813939,0.2922,59030.0,59023.0,0.05046925]
[1724188814168,0.3608,59029.0,59009.0,0.05046925]
[1724188814346,0.3608,59011.0,59010.0,0.084727]
[1724188814533,0.3608,59011.0,59003.0,0.05046925]
[1724188814839,0.3608,59011.0,59006.0,0.084733]
[1724188815040,0.00017466,59010.0,59006.0,0.084733]
[1724188815846,0.00017466,59010.0,59002.0,0.3608]
[1724188816647,0.00117466,59010.0,59002.0,0.3608]
[1724188817043,0.00117466,59010.0,59003.0,0.084736]
[1724188817540,0.00117466,59010.0,59002.0,0.3608]
[1724188817541,0.00117466,59010.0,59005.0,0.084734]
[1724188817940,0.00017466,59010.0,59005.0,0.084734]
[1724188818140,0.00117466,59010.0,59005.0,0.084734]
[1724188818543,0.00017466,59010.0,59005.0,0.084734]
[1724188818735,0.00117466,59010.0,59005.0,0.084734]
[1724188821744,0.00117466,59010.0,59006.0,0.084733]
[1724188821941,0.00117466,59010.0,59008.0,0.08473]
[1724188824042,0.00117466,59010.0,59009.0,0.084729]
[1724188825650,0.00025419,59013.0,59012.0,0.084725]
[1724188826748,0.00035869,59013.0,59012.0,0.084725]
[1724188830851,0.00035869,59013.0,59012.0,0.301925]
[1724188832645,0.00035869,59013.0,59012.0,0.35239425]
[1724188833550,0.3254,59023.0,59012.0,1.210285]
[1724188833757,0.3608,59024.0,59022.0,0.08471]
[1724188834251,0.3608,59024.0,59023.0,0.084709]
[1724188834757,0.3608,59024.0,59017.0,0.05053937]
[1724188834758,0.084715,59019.0,59018.0,0.00025419]
[1724188834944,0.084726,59011.0,59010.0,0.05053937]
[1724188835261,0.084728,59010.0,59005.0,0.05053937]
[1724188835555,0.3608,59006.0,59003.0,0.084737]
[1724188838041,0.3618,59006.0,59003.0,0.084737]
[1724188839167,0.3618,59006.0,59003.0,0.13527637]
[1724188839347,0.3618,59006.0,59003.0,0.084737]
[1724188840349,0.3618,59006.0,59002.0,0.05053937]
[1724188840558,0.3618,59006.0,58997.0,0.07801683]
[1724188840559,0.446533,59006.0,59003.0,0.05053937]
[1724188840750,0.446533,59006.0,59002.0,0.05053937]
[1724188841153,0.084737,59003.0,59002.0,0.05053937]
[1724188841452,0.2922,59005.0,58996.0,0.06729234]
[1724188841453,0.084739,59002.0,59001.0,0.05069102]
[1724188841643,0.2922,59005.0,58994.0,0.05069102]
[1724188841846,0.084753,58992.0,58991.0,0.05069102]
[1724188842147,0.084756,58990.0,58987.0,0.0506966]
[1724188842657,0.084756,58990.0,58986.0,0.0506966]
[1724188842844,0.3608,58987.0,58985.0,0.084763]
[1724188843350,0.3608,58987.0,58986.0,0.05069714]
[1724188844366,0.3608,58987.0,58985.0,0.13546014]
[1724188844551,0.001,58990.0,58985.0,0.05069714]
[1724188844751,0.001,58990.0,58988.0,0.0506775]
[1724188845055,0.001,58990.0,58989.0,0.0506775]
[1724188845267,0.3608,58992.0,58989.0,0.1354335]
[1724188845553,0.3608,58992.0,58989.0,0.084756]
[1724188846061,0.001,58990.0,58989.0,0.1354335]
[1724188846353,0.001,58990.0,58989.0,0.084756]
[1724188846562,0.00025419,58997.0,58996.0,0.084748]
[1724188846753,0.00025419,58997.0,58996.0,0.13539985]
[1724188847063,0.00025419,58997.0,58996.0,0.084748]
[1724188847263,0.00025419,58997.0,58996.0,0.993268]
[1724188847555,0.3608,59005.0,59004.0,0.084736]
[1724188848947,0.3738,59005.0,59004.0,0.084736]
[1724188849356,0.00025419,59010.0,59009.0,0.084729]
[1724188849562,0.01034789,59016.0,59015.0,0.08472]
[1724188849765,0.6862,59022.0,59019.0,0.084713]
[1724188850060,0.3608,59022.0,59019.0,0.084713]
[1724188850651,0.00025419,59026.0,59019.0,0.445513]
[1724188850958,0.00025419,59026.0,59019.0,0.3608]
[1724188851273,0.00025419,59026.0,59024.0,0.3608]
[1724188851651,0.00025419,59026.0,59025.0,0.084706]
[1724188852053,0.084713,59020.0,59019.0,0.001]
[1724188852252,0.50832,59019.0,59002.0,0.0505966]
[1724188852462,0.083735,59005.0,58997.0,0.445546]
[1724188852660,0.444535,59005.0,58997.0,0.445546]
[1724188854070,0.3598,59005.0,58998.0,0.084744]
[1724188854766,0.3598,59005.0,58999.0,0.084743]
[1724188855261,0.3628,59005.0,58999.0,0.084743]
[1724188855451,0.003,59005.0,58996.0,0.468]
[1724188855760,0.003,59005.0,59003.0,0.084737]
[1724188858259,0.00279746,59004.0,59003.0,0.084737]
[1724188858953,0.00279746,59004.0,59003.0,0.085737]
[1724188859356,0.36359746,59004.0,59003.0,0.001]
[1724188859767,0.084738,59003.0,58997.0,0.084746]
[1724188859952,0.00279746,59002.0,58997.0,0.084746]
[1724188860151,0.00279746,59001.0,58997.0,0.084746]
[1724188860367,0.00279746,59000.0,58997.0,0.084746]
[1724188860569,0.00279746,58999.0,58997.0,0.084746]
[1724188860862,0.00279746,58998.0,58997.0,0.084746]
[1724188861569,0.00279746,59002.0,58997.0,0.084746]
[1724188861759,0.00279746,59001.0,58997.0,0.084746]
[1724188861966,0.087738,59003.0,58997.0,0.084746]
[1724188862153,0.004,58998.0,58997.0,0.084746]
[1724188862353,0.00679778,58998.0,58997.0,0.084746]
[1724188862759,0.00679778,58998.0,58995.0,0.00025419]
[1724188862760,0.084748,58996.0,58995.0,0.00025419]
[1724188862958,0.08754578,58996.0,58995.0,0.00025419]
[1724188865063,0.084764,58985.0,58979.0,0.084771]
[1724188865366,0.3608,58980.0,58979.0,0.084771]
[1724188865567,0.36359877,58980.0,58979.0,0.084771]
[1724188865871,0.3635987,58980.0,58979.0,0.084771]
[1724188866062,0.3635987,58980.0,58979.0,0.079771]
[1724188867868,0.084765,58984.0,58979.0,0.86944]
[1724188868071,0.084765,58984.0,58974.0,0.3608]
[1724188868269,0.3608,58981.0,58978.0,0.084772]
[1724188868464,0.3608,58981.0,58974.0,0.445579]
[1724188868660,0.87494,58980.0,58970.0,0.0505966]
[1724188868860,0.3608,58972.0,58961.0,0.084797]
[1724188869066,0.084788,58968.0,58961.0,0.084797]
[1724188869263,0.084788,58968.0,58962.0,0.084796]
[1724188869472,0.3608,58966.0,58962.0,0.084796]
[1724188869772,0.084796,58963.0,58953.0,0.190309]
[1724188870273,0.00016082,58965.0,58953.0,0.084809]
[1724188870274,0.3608,58959.0,58953.0,0.084809]
[1724188870768,0.3608,58959.0,58950.0,0.3608]
[1724188871071,0.3608,58959.0,58941.0,0.0505966]
[1724188871072,0.3608,58952.0,58941.0,0.0505966]
[1724188871263,0.7271,58959.0,58935.0,0.3608]
[1724188871264,0.00016082,58951.0,58940.0,0.3608]
[1724188871466,0.00016082,58951.0,58950.0,0.084814]
[1724188871676,0.00016082,58951.0,58940.0,0.3608]
[1724188872263,0.3608,58946.0,58935.0,0.3608]
[1724188872978,0.3608,58946.0,58937.0,0.084832]
[1724188873471,0.3608,58946.0,58935.0,0.3608]
[1724188873673,0.00016082,58951.0,58945.0,0.3608]
[1724188874081,0.00016082,58951.0,58948.0,0.084816]
[1724188874782,0.00016082,58951.0,58949.0,0.084815]
[1724188875978,0.00016082,58951.0,58949.0,0.993735]
[1724188876375,0.00016082,58951.0,58950.0,0.3608]
[1724188876576,0.3608,58962.0,58950.0,0.3608]
[1724188876775,0.3608,58962.0,58949.0,0.00088]
[1724188876776,0.0018,58965.0,58962.0,0.084796]
[1724188877073,0.0018,58965.0,58961.0,0.3608]
[1724188877074,0.3608,58971.0,58961.0,0.3608]
[1724188877273,0.3608,58971.0,58962.0,0.2204]
[1724188877482,0.3608,58971.0,58970.0,0.084785]
[1724188877677,0.3608,58983.0,58970.0,0.3608]
[1724188877886,0.00025441,58976.0,58975.0,0.445578]
[1724188878780,0.00025441,58976.0,58975.0,0.954258]
[1724188878971,0.3608,58995.0,58990.0,0.084756]
[1724188879478,0.3608,58995.0,58993.0,0.084751]
[1724188879871,0.1157,59008.0,58987.0,0.3608]
[1724188879872,0.1139,59008.0,58997.0,0.084746]
[1724188880175,0.00025441,59008.0,58997.0,0.08500041]
[1724188880373,0.00025441,59008.0,58998.0,0.084744]
[1724188880577,0.00025441,59008.0,59000.0,0.084741]
[1724188881079,0.00025441,59008.0,59005.0,0.084734]
[1724188881386,0.00025441,59008.0,59006.0,0.084733]
[1724188882879,0.00025441,59008.0,59006.0,0.445533]
[1724188883667,0.00025441,59008.0,59006.0,0.084733]
[1724188885877,0.00025441,59008.0,59007.0,0.084732]
[1724188889880,0.3608,59028.0,59008.0,0.08473]
[1724188890078,0.00279687,59027.0,59018.0,0.3608]
[1724188890279,0.00279687,59026.0,59018.0,0.3608]
[1724188890479,0.445502,59028.0,59022.0,0.08471]
[1724188890879,0.3608,59028.0,59024.0,0.084706]
[1724188891379,0.3608,59028.0,59019.0,0.00025419]
[1724188892375,0.3608,59028.0,59026.0,0.084704]
[1724188892780,0.3608,59028.0,59027.0,0.084703]
[1724188893490,0.00025419,59031.0,59029.0,0.0847]
[1724188893679,0.00025419,59031.0,59030.0,0.084699]
[1724188895888,0.00025419,59031.0,59030.0,0.992899]
[1724188896093,0.084679,59044.0,59037.0,0.084688]
[1724188896594,0.3608,59047.0,59034.0,0.3608]
[1724188896595,0.3608,59047.0,59040.0,0.084684]
[1724188896785,0.3608,59047.0,59034.0,0.3608]
[1724188897181,0.00025419,59046.0,59035.0,0.00025419]
[1724188897389,0.00025419,59046.0,59041.0,0.084682]
[1724188897587,0.00025419,59046.0,59045.0,0.084678]
[1724188901492,0.084683,59041.0,59035.0,0.00025419]
[1724188901887,0.3608,59036.0,59035.0,0.00025419]
[1724188902482,0.3608,59042.0,59035.0,0.00025419]
[1724188902689,0.3608,59037.0,59035.0,0.00025419]
[1724188903189,0.445489,59037.0,59035.0,0.00025419]
[1724188904490,0.3608,59037.0,59036.0,0.08469]
[1724188907385,0.08207138,59039.0,59038.0,0.084688]
[1724188907587,0.3608,59043.0,59035.0,0.00025419]
[1724188907588,0.082483,59041.0,59035.0,0.00025419]
[1724188907785,0.0659874,59038.0,59035.0,0.00025419]
[1724188907988,0.0659874,59038.0,59037.0,0.084689]
[1724188908193,0.0659874,59039.0,59038.0,0.084688]
[1724188908405,0.082483,59041.0,59040.0,0.084685]
[1724188908588,0.3608,59043.0,59035.0,0.00025419]
[1724188908803,0.06605132,59037.0,59035.0,0.00025419]
[1724188909188,0.06605132,59038.0,59037.0,0.084689]
[1724188909391,0.3608,59043.0,59040.0,0.084685]
[1724188909392,0.08256416,59041.0,59040.0,0.084685]
[1724188909584,0.08256416,59042.0,59041.0,0.084683]
[1724188909794,0.3608,59043.0,59042.0,0.084682]
[1724188909795,0.44336416,59043.0,59042.0,0.084682]
[1724188909991,0.08256416,59043.0,59042.0,0.084682]
[1724188910189,0.08256416,59044.0,59043.0,0.08468]
[1724188910385,0.08256416,59045.0,59044.0,0.084679]
[1724188910590,0.08281835,59046.0,59045.0,0.084678]
[1724188910797,0.00025419,59046.0,59045.0,0.084678]
[1724188912592,0.06639739,59046.0,59045.0,0.169356]
[1724188912785,0.00025419,59046.0,59045.0,0.169356]
[1724188913699,0.3608,59055.0,59054.0,0.084665]
[1724188913893,0.4269432,59062.0,59057.0,0.08466]
[1724188914084,0.3608,59062.0,59057.0,0.08466]
[1724188914897,0.3608,59062.0,59054.0,0.00025419]
[1724188915495,0.3608,59062.0,59061.0,0.084655]
[1724188920206,0.00025419,59065.0,59064.0,0.08465]
[1724188926803,0.00025419,59065.0,59064.0,0.1693]
[1724188928601,0.3608,59073.0,59072.0,0.084639]
[1724188928800,0.3608,59073.0,59072.0,0.377339]
[1724188929003,0.1743432,59080.0,59072.0,0.2927]
[1724188929201,0.1082,59080.0,59079.0,0.084629]
[1724188930305,0.11099408,59080.0,59079.0,0.084629]
[1724188930506,0.1082,59080.0,59079.0,0.084629]
[1724188931302,0.3608,59081.0,59080.0,0.084627]
[1724188934109,0.00016727,59085.0,59083.0,0.084623]
[1724188934297,0.00279386,59084.0,59083.0,0.084623]
[1724188934911,0.00279386,59084.0,59078.0,0.2927]
[1724188934912,0.00016727,59085.0,59084.0,0.084621]
[1724188935209,0.00296105,59085.0,59084.0,0.084621]
[1724188935412,0.06631047,59085.0,59084.0,0.377321]
[1724188935617,0.00016727,59085.0,59084.0,0.377321]
[1724188936312,0.00016727,59085.0,59084.0,0.484221]
[1724188936707,0.3608,59093.0,59092.0,0.08461]
[1724188937015,0.3608,59093.0,59092.0,0.37731]
[1724188937210,0.3608,59100.0,59092.0,0.2927]
[1724188937609,0.3608,59100.0,59099.0,0.0846]
[1724188937804,0.3635932,59100.0,59099.0,0.0846]
[1724188938209,0.1133,59105.0,59100.0,0.084598]
[1724188938412,0.1133,59105.0,59095.0,0.3608]
[1724188938413,0.00279307,59104.0,59101.0,0.084597]
[1724188938620,0.1115,59105.0,59101.0,0.084597]
[1724188938807,0.00279298,59104.0,59099.0,0.2927]
[1724188939109,0.1115,59105.0,59104.0,0.084593]
[1724188939412,0.3608,59106.0,59105.0,0.084591]
[1724188939616,0.3608,59106.0,59105.0,0.377291]
[1724188945615,0.3608,59111.0,59105.0,0.6535]
[1724188945915,0.3608,59111.0,59110.0,0.2927]
[1724188947323,0.3608,59111.0,59110.0,0.377284]
[1724188950926,0.3608,59111.0,59106.0,0.084589]
[1724188951126,0.084587,59108.0,59102.0,0.08484897]
[1724188951424,0.3608,59106.0,59102.0,0.00025397]
[1724188952013,0.3608,59106.0,59105.0,0.084591]
[1724188952723,0.86836,59106.0,59102.0,0.00025397]
[1724188952916,0.61306,59105.0,59102.0,0.00025397]
[1724188953427,0.445394,59103.0,59102.0,0.00025397]
[1724188953819,0.084597,59102.0,59096.0,0.084604]
[1724188954016,0.3608,59097.0,59096.0,0.084604]
[1724188961923,0.36105397,59102.0,59100.0,0.084598]
[1724188962129,0.00279317,59101.0,59100.0,0.084598]
[1724188963332,0.42719717,59102.0,59101.0,0.084597]
[1724188963639,0.93759035,59102.0,59101.0,0.084597]
[1724188964125,0.87144715,59102.0,59101.0,0.084597]
[1724188964330,0.51064715,59102.0,59101.0,0.084597]
[1724188964632,0.36384715,59102.0,59101.0,0.084597]
[1724188965725,0.36384715,59102.0,59091.0,0.00025397]
[1724188965726,0.084605,59096.0,59094.0,0.084606]
[1724188965936,0.084608,59094.0,59091.0,0.00025397]
[1724188966134,0.00279318,59093.0,59092.0,0.08461]
[1724188966434,0.11219318,59093.0,59092.0,0.08461]
[1724188966831,0.50768,59092.0,59081.0,0.0505966]
[1724188967028,0.50768,59092.0,59077.0,0.3608]
[1724188967029,0.3608,59086.0,59084.0,0.084621]
[1724188967224,0.3608,59086.0,59077.0,0.4113966]
[1724188967225,0.3608,59086.0,59085.0,0.08462]
[1724188967427,0.36359385,59086.0,59085.0,0.08462]
[1724188967631,0.87131385,59086.0,59085.0,0.08462]
[1724188968030,0.93785977,59086.0,59083.0,0.084623]
[1724188968332,0.00279385,59085.0,59083.0,0.084623]
[1724188968735,0.51055385,59085.0,59083.0,0.084623]
[1724188968932,0.00279392,59084.0,59083.0,0.084623]
[1724188969323,0.51055392,59084.0,59083.0,0.084623]
[1724188970734,0.00279392,59084.0,59083.0,0.084623]
[1724188971529,0.00279391,59084.0,59083.0,0.084623]
[1724188975648,0.3608,59086.0,59085.0,0.08462]
[1724188975830,0.36359367,59086.0,59085.0,0.08462]
[1724188976027,0.00279367,59086.0,59085.0,0.08462]
[1724188978143,0.00279367,59086.0,59085.0,0.09520441]
[1724188979143,0.00279367,59086.0,59085.0,0.08462]
[1724188979847,0.42734592,59089.0,59088.0,0.084616]
[1724188980038,0.43013958,59089.0,59088.0,0.084616]
[1724188980234,0.36359366,59089.0,59088.0,0.084616]
[1724188984238,0.36359366,59089.0,59088.0,0.169232]
[1724188984547,0.00279366,59089.0,59088.0,1.037752]
[1724188985451,0.00025397,59091.0,59090.0,0.169226]
[1724188985956,0.00025397,59091.0,59090.0,0.969606]
[1724188988558,0.00025397,59091.0,59090.0,0.461926]
[1724188988954,0.00025397,59091.0,59090.0,0.5125226]
[1724188989149,0.00025397,59091.0,59090.0,0.09499964]
[1724188992353,0.00025397,59091.0,59090.0,0.17961264]
[1724188994265,0.06657424,59097.0,59096.0,0.084604]
[1724188994491,0.06657424,59098.0,59097.0,0.084603]
[1724188994655,0.06657424,59099.0,59098.0,0.084601]
[1724188995057,0.06657424,59100.0,59099.0,0.0846]
[1724188995258,0.06657424,59102.0,59101.0,0.084597]
[1724188995468,0.06657424,59104.0,59098.0,0.3608]
[1724188995687,0.00025397,59105.0,59104.0,0.084593]
[1724188997260,0.00304658,59105.0,59104.0,0.084593]
[1724188997963,0.00304658,59105.0,59104.0,1.00252433]
[1724188998366,0.00304658,59105.0,59104.0,1.08711733]
[1724188998570,0.00304631,59105.0,59104.0,1.08711733]
[1724188999461,0.00304631,59105.0,59104.0,0.68711733]
[1724189001769,0.00304642,59105.0,59104.0,0.68711733]
[1724189002859,0.00025397,59105.0,59104.0,0.68711733]
[1724189003068,0.00304641,59105.0,59104.0,0.68711733]
[1724189006667,0.00304639,59105.0,59104.0,0.68711733]
[1724189007765,0.00304639,59105.0,59104.0,0.17955733]
[1724189007964,0.00304639,59105.0,59104.0,0.09496433]
[1724189011861,0.57718063,59105.0,59104.0,0.084593]
[1724189012272,0.91060639,59105.0,59104.0,0.084593]
[1724189012472,0.51060639,59105.0,59104.0,0.084593]
[1724189017885,0.00304639,59105.0,59104.0,0.084593]
[1724189018174,0.51060639,59105.0,59104.0,0.084593]
[1724189018680,0.51060687,59105.0,59104.0,0.084593]
[1724189019583,0.00304687,59105.0,59104.0,0.084593]
[1724189020482,0.00304687,59105.0,59104.0,0.201593]
[1724189022283,0.08561103,59105.0,59104.0,0.201593]
[1724189022788,0.00304687,59105.0,59104.0,0.201593]
[1724189024476,0.08561103,59105.0,59104.0,0.201593]
[1724189025178,0.00304687,59105.0,59104.0,0.201593]
[1724189025684,0.00304687,59105.0,59104.0,0.286186]
[1724189026596,0.00304655,59105.0,59104.0,0.286186]
[1724189027174,0.00304655,59105.0,59104.0,0.201593]
[1724189027991,0.00304655,59105.0,59104.0,0.562393]
[1724189028595,0.00304655,59105.0,59104.0,1.554546]
[1724189028887,0.00304655,59105.0,59104.0,1.6051426]
[1724189029784,0.06665417,59112.0,59111.0,0.084583]
[1724189029990,0.06944646,59112.0,59111.0,0.201583]
[1724189030293,0.00279229,59112.0,59111.0,0.201583]
[1724189030592,0.06665417,59115.0,59114.0,0.084579]
[1724189030793,0.00279214,59115.0,59114.0,0.201579]
[1724189032790,0.00279214,59115.0,59114.0,0.21201429]
[1724189034685,0.00279214,59115.0,59114.0,0.65739329]
[1724189034886,0.00279214,59115.0,59114.0,1.16487329]
[1724189035489,0.00279214,59115.0,59114.0,0.65739329]
[1724189035696,0.00279214,59115.0,59114.0,1.56487329]
[1724189036191,0.04994382,59122.0,59114.0,1.48029429]
[1724189036395,0.04994382,59122.0,59121.0,0.4778]
[1724189036985,0.04994382,59122.0,59121.0,0.562369]
[1724189037186,0.04994382,59123.0,59122.0,0.084567]
[1724189037387,0.04994382,59123.0,59122.0,0.201567]
[1724189038290,0.29085348,59134.0,59123.0,0.084566]
[1724189038291,0.04994382,59124.0,59123.0,0.084566]
[1724189038490,0.04994382,59124.0,59123.0,0.201566]
[1724189040293,0.04994382,59125.0,59124.0,0.084564]
[1724189040890,0.06027144,59129.0,59127.0,0.084559]
[1724189041093,0.04994382,59130.0,59128.0,0.117]
[1724189041298,0.04994382,59130.0,59129.0,0.117]
[1724189042191,0.04994382,59130.0,59129.0,0.201557]
[1724189043085,0.04994382,59131.0,59130.0,0.084556]
[1724189045199,0.42125768,59132.0,59131.0,0.084554]
[1724189046999,0.37131386,59132.0,59131.0,0.084554]
[1724189048296,0.37410544,59132.0,59131.0,0.084554]
[1724189048496,0.36359158,59132.0,59131.0,0.084554]
[1724189048991,0.44615574,59132.0,59131.0,0.084554]
[1724189049296,0.08256416,59132.0,59131.0,0.084554]
[1724189049491,0.08535574,59132.0,59131.0,0.084554]
[1724189050201,0.00279158,59132.0,59131.0,0.084554]
[1724189050419,0.1067,59134.0,59131.0,0.084554]
[1724189050592,0.11698184,59134.0,59133.0,0.201551]
[1724189050898,0.14718437,59134.0,59133.0,0.201551]
[1724189052297,0.24678785,59134.0,59133.0,0.201551]
[1724189052800,0.14718437,59134.0,59133.0,0.201551]
[1724189054004,0.13690253,59134.0,59133.0,0.201551]
[1724189054498,0.10949158,59134.0,59133.0,0.201551]
[1724189054998,0.19267173,59134.0,59133.0,0.201551]
[1724189055198,0.00279158,59134.0,59133.0,0.169102]
[1724189055405,0.00279158,59134.0,59133.0,0.201551]
[1724189055799,0.00279158,59134.0,59133.0,0.21184845]
[1724189058501,0.00279158,59134.0,59133.0,0.29639945]
[1724189060313,0.06657656,59135.0,59134.0,0.1691]
[1724189060498,0.06936774,59135.0,59134.0,0.1691]
[1724189061511,0.06936774,59135.0,59134.0,0.2861]
[1724189061702,0.00279118,59135.0,59134.0,0.08455]
[1724189061903,0.00279118,59135.0,59134.0,0.20155]
[1724189063299,0.00279118,59135.0,59134.0,0.08455]
[1724189063499,0.00279118,59135.0,59134.0,0.20155]
[1724189065009,0.44677133,59135.0,59134.0,0.20155]
[1724189065213,0.44677154,59135.0,59134.0,0.20155]
[1724189065602,0.36359139,59135.0,59134.0,0.20155]
[1724189065913,0.44677154,59135.0,59134.0,0.20155]
[1724189069920,0.44398015,59135.0,59134.0,0.20155]
[1724189070106,1.01532047,59135.0,59123.0,0.084565]
[1724189070312,0.4778,59130.0,59113.0,0.0505966]
[1724189070507,0.06665009,59116.0,59112.0,0.1035]
[1724189070812,0.00279139,59115.0,59114.0,0.117]
[1724189071009,0.21609139,59115.0,59114.0,0.117]
[1724189071312,0.75623975,59115.0,59114.0,0.117]
[1724189071912,1.15623975,59115.0,59111.0,0.084582]
[1724189072113,0.3608,59112.0,59111.0,0.084582]
[1724189072309,0.36359139,59112.0,59111.0,0.117]
[1724189072610,0.87111139,59112.0,59109.0,0.00025374]
[1724189072797,0.00279139,59111.0,59109.0,0.00025374]
[1724189073000,0.00279139,59110.0,59109.0,0.00025374]
[1724189073214,0.08591512,59110.0,59109.0,0.00025374]
[1724189074622,0.08591631,59110.0,59109.0,0.00025374]
[1724189075203,0.00279258,59110.0,59109.0,0.00025374]
[1724189079009,0.3608,59112.0,59109.0,0.08483974]
[1724189079331,0.00279258,59111.0,59109.0,0.08483974]
[1724189079617,0.00279258,59110.0,59109.0,0.08483974]
[1724189092934,0.3608,59113.0,59112.0,0.084581]
[1724189093242,0.36359258,59113.0,59112.0,0.084581]
[1724189095119,0.00279258,59113.0,59112.0,0.084581]
[1724189096623,0.06921441,59113.0,59112.0,0.084581]
[1724189097329,0.00279258,59113.0,59112.0,0.084581]
[1724189099134,0.08591631,59113.0,59112.0,0.084581]
[1724189100232,0.00279258,59113.0,59112.0,0.084581]
[1724189100536,0.21959877,59113.0,59109.0,0.00025374]
[1724189100733,0.117,59110.0,59109.0,0.00025374]
[1724189100935,0.11979258,59110.0,59109.0,0.08483974]
[1724189101236,1.02731258,59110.0,59109.0,0.08483974]
[1724189101625,1.02731258,59110.0,59100.0,0.117]
[1724189101826,0.4441755,59101.0,59100.0,0.084599]
[1724189102033,0.44696808,59101.0,59100.0,0.21182816]
[1724189102226,0.44696808,59101.0,59100.0,0.09482816]
[1724189102435,0.44696808,59101.0,59100.0,0.201599]
[1724189103230,0.36359258,59101.0,59100.0,0.201599]
[1724189103828,0.44696808,59101.0,59100.0,0.201599]
[1724189104032,0.44696808,59101.0,59099.0,0.01052869]
[1724189104033,0.084599,59100.0,59099.0,0.000174]
[1724189104325,0.084599,59100.0,59084.0,0.3608]
[1724189104326,0.83874078,59100.0,59084.0,0.3608]
[1724189104529,0.83874078,59100.0,59081.0,0.117]
[1724189104530,0.20020785,59086.0,59081.0,0.117]
[1724189104730,0.3608,59084.0,59081.0,0.117]
[1724189104932,0.00279258,59083.0,59081.0,0.117]
[1724189105128,0.00012816,59082.0,59081.0,0.117]
[1724189105336,0.06941244,59082.0,59081.0,0.117]
[1724189106232,0.00292074,59082.0,59081.0,0.117]
[1724189107335,0.00292074,59082.0,59081.0,1.470186]
[1724189107529,0.00025374,59088.0,59087.0,0.084617]
[1724189107724,0.00025374,59088.0,59087.0,0.562417]
[1724189108442,0.00029958,59088.0,59087.0,1.470137]
[1724189108741,0.3608,59098.0,59097.0,0.084603]
[1724189108935,0.3608,59098.0,59097.0,0.201603]
[1724189110541,0.3608,59098.0,59097.0,0.084603]
[1724189112343,0.00025374,59103.0,59094.0,0.1053]
[1724189112344,0.00025374,59103.0,59099.0,0.084599]
[1724189113339,0.00025374,59103.0,59100.0,0.3608]
[1724189114141,0.00025374,59103.0,59102.0,0.084596]
[1724189119440,0.00304636,59103.0,59102.0,0.084596]
[1724189120237,0.00025374,59103.0,59102.0,0.0947186]
[1724189120438,0.00304634,59103.0,59102.0,0.0947186]
[1724189122249,0.00304634,59103.0,59102.0,0.4555186]
[1724189122468,0.00025374,59103.0,59102.0,0.4555186]
[1724189122642,0.00304632,59103.0,59102.0,0.4555186]
[1724189125348,0.00304631,59103.0,59102.0,0.4555186]
[1724189129750,0.1034,59117.0,59116.0,0.084576]
[1724189129948,0.0664917,59121.0,59116.0,0.3608]
[1724189130251,0.0664917,59123.0,59120.0,0.08457]
[1724189130856,0.0664917,59123.0,59116.0,0.3608]
[1724189130857,0.0664917,59123.0,59122.0,0.084567]
[1724189131042,0.0664917,59123.0,59116.0,0.36105374]
[1724189131043,0.0498223,59124.0,59117.0,0.2925]
[1724189131242,0.36276,59125.0,59124.0,0.084564]
[1724189131243,0.4106223,59125.0,59124.0,0.084564]
[1724189131645,0.3608,59125.0,59124.0,0.084564]
[1724189133047,0.3608,59125.0,59124.0,0.09512337]
[1724189133349,0.00025301,59127.0,59126.0,0.084561]